[Event "Vastgota Open 2022"]
[Site "Skara stadshotell, Jarnvagsgatan 5, Skara, Sweden"]
[Date "2022.10.29"]
[Round "4.7"]
[White "Ronneland, Daniel"]
[Black "Magnussen, Pal"]
[Result "1-0"]
[TimeControl "30 minutes + 10 seconds per move from move one."]
[WhiteFideId "1702130"]
[BlackFideId "1711814"]
[WhiteElo "2206"]
[BlackElo "1861"]

1. e4 {[%clk 00:30:17]} {[%emt 00:00:02]} e5 {[%clk 00:30:13]} {[%emt
00:00:07]} 2. Nf3 {[%clk 00:30:21]} {[%emt 00:00:06]} Nc6 {[%clk 00:30:21]}
{[%emt 00:00:03]} 3. Bb5 {[%clk 00:30:24]} {[%emt 00:00:06]} f5 {[%clk
00:30:27]} {[%emt 00:00:04]} 4. Nc3 {[%clk 00:30:12]} {[%emt 00:00:22]} fxe4
{[%clk 00:30:14]} {[%emt 00:00:23]} 5. Nxe4 {[%clk 00:30:15]} {[%emt 00:00:07]}
d5 {[%clk 00:30:21]} {[%emt 00:00:04]} 6. Nxe5 {[%clk 00:30:19]} {[%emt
00:00:06]} dxe4 {[%clk 00:30:27]} {[%emt 00:00:03]} 7. Nxc6 {[%clk 00:29:25]}
{[%emt 00:01:05]} Qg5 {[%clk 00:29:22]} {[%emt 00:01:15]} 8. Qe2 {[%clk
00:25:56]} {[%emt 00:03:39]} Nf6 {[%clk 00:29:23]} {[%emt 00:00:09]} 9. f4
{[%clk 00:24:16]} {[%emt 00:01:49]} Qh4+ {[%clk 00:28:40]} {[%emt 00:00:54]} 10.
g3 {[%clk 00:23:24]} {[%emt 00:01:02]} Qh3 {[%clk 00:28:46]} {[%emt 00:00:03]}
11. Ne5+ {[%clk 00:21:43]} {[%emt 00:01:50]} c6 {[%clk 00:28:48]} {[%emt
00:00:09]} 12. Bc4 {[%clk 00:21:00]} {[%emt 00:00:53]} h5 {[%clk 00:28:50]}
{[%emt 00:00:09]} 13. b3 {[%clk 00:17:27]} {[%emt 00:03:43]} h4 {[%clk
00:28:17]} {[%emt 00:00:43]} 14. Bb2 {[%clk 00:17:23]} {[%emt 00:00:13]} hxg3
{[%clk 00:27:45]} {[%emt 00:00:43]} 15. O-O-O {[%clk 00:17:19]} {[%emt
00:00:14]} gxh2 {[%clk 00:26:19]} {[%emt 00:01:36]} 16. Bf7+ {[%clk 00:13:33]}
{[%emt 00:03:55]} Kd8 {[%clk 00:25:34]} {[%emt 00:00:54]} 17. Ng6 {[%clk
00:07:11]} {[%emt 00:06:33]} Bg4 {[%clk 00:24:16]} {[%emt 00:01:29]} 18. Qc4
{[%clk 00:02:23]} {[%emt 00:04:57]} Bxd1 {[%clk 00:22:27]} {[%emt 00:02:00]} 19.
Qd4+ {[%clk 00:01:14]} {[%emt 00:01:18]} Kc7 {[%clk 00:22:03]} {[%emt
00:00:35]} 20. Nxf8 {[%clk 00:00:48]} {[%emt 00:00:36]} Raxf8 {[%clk 00:19:32]}
{[%emt 00:02:41]} 21. Qe5+ {[%clk 00:00:49]} {[%emt 00:00:09]} Kd7 {[%clk
00:19:20]} {[%emt 00:00:22]} 22. Bg6 {[%clk 00:00:21]} {[%emt 00:00:38]} Bg4
{[%clk 00:18:17]} {[%emt 00:01:13]} 23. Ba3 {[%clk 00:00:23]} {[%emt 00:00:07]}
Re8 {[%clk 00:17:29]} {[%emt 00:00:59]} 24. Qd6+ {[%clk 00:00:23]} {[%emt
00:00:09]} Kc8 {[%clk 00:17:30]} {[%emt 00:00:09]} 25. Bc5 {[%clk 00:00:24]}
{[%emt 00:00:09]} Rd8 {[%clk 00:17:09]} {[%emt 00:00:31]} 26. Qe7 {[%clk
00:00:23]} {[%emt 00:00:12]} Qg2 {[%clk 00:14:35]} {[%emt 00:02:44]} 27. Bxa7
{[%clk 00:00:13]} {[%emt 00:00:21]} Qxh1+ {[%clk 00:14:23]} {[%emt 00:00:21]}
28. Kb2 {[%clk 00:00:22]} Rd7 {[%clk 00:13:38]} {[%emt 00:00:56]} 29. Qe5
{[%clk 00:00:30]} {[%emt 00:00:02]} Rc7 {[%clk 00:12:45]} {[%emt 00:01:02]} 30.
Bb6 {[%clk 00:00:36]} {[%emt 00:00:05]} Rd7 {[%clk 00:11:44]} {[%emt 00:01:11]}
31. Ba7 {[%clk 00:00:45]} {[%emt 00:00:01]} Rxd2 {[%clk 00:11:32]} {[%emt
00:00:22]} 32. Qb8+ {[%clk 00:00:41]} {[%emt 00:00:14]} Kd7 {[%clk 00:11:36]}
{[%emt 00:00:06]} 33. Qxb7+ {[%clk 00:00:47]} {[%emt 00:00:04]} Kd6 {[%clk
00:09:59]} {[%emt 00:01:46]} 34. Qb4+ {[%clk 00:00:21]} {[%emt 00:00:36]} Ke6
{[%clk 00:09:46]} {[%emt 00:00:23]} 35. Qxd2 {[%clk 00:00:11]} {[%emt
00:00:21]} Qd1 {[%clk 00:09:49]} {[%emt 00:00:06]} 36. Qc3 {[%clk 00:00:17]}
{[%emt 00:00:05]} h1=Q {[%clk 00:09:33]} {[%emt 00:00:25]} 37. Qxc6+ {[%clk
00:00:19]} {[%emt 00:00:09]} Qd6 {[%clk 00:09:30]} {[%emt 00:00:12]} 38. Qc4+
{[%clk 00:00:24]} {[%emt 00:00:04]} Nd5 {[%clk 00:09:30]} {[%emt 00:00:11]} 39.
Bc5 {[%clk 00:00:13]} {[%emt 00:00:22]} Qxf4 {[%clk 00:09:20]} {[%emt
00:00:21]} 40. Qa6+ {[%clk 00:00:20]} {[%emt 00:00:03]} Ke5 {[%clk 00:09:12]}
{[%emt 00:00:18]} 41. Bd6+ {[%clk 00:00:27]} {[%emt 00:00:02]} Kd4 {[%clk
00:08:59]} {[%emt 00:00:23]} 42. Qa7+ {[%clk 00:00:37]} Nb6 {[%clk 00:09:01]}
{[%emt 00:00:08]} 43. Qxb6+ {[%clk 00:00:45]} {[%emt 00:00:02]} Kd5 {[%clk
00:09:10]} 44. Bxf4 {[%clk 00:00:47]} 1-0

[Event "Vastgota Open 2022"]
[Site "Skara stadshotell, Jarnvagsgatan 5, Skara, Sweden"]
[Date "2022.10.29"]
[Round "4.8"]
[White "Gustavsson, Ingemar"]
[Black "Madebrink, Lars"]
[Result "0-1"]
[TimeControl "30 minutes + 10 seconds per move from move one."]
[WhiteFideId "1723340"]
[BlackFideId "1701347"]
[WhiteElo "1903"]
[BlackElo "2094"]

1. e4 {[%clk 00:30:18]} {[%emt 00:00:02]} c5 {[%clk 00:30:17]} {[%emt
00:00:03]} 2. Nf3 {[%clk 00:30:26]} {[%emt 00:00:02]} Nc6 {[%clk 00:30:18]}
{[%emt 00:00:08]} 3. d4 {[%clk 00:30:35]} {[%emt 00:00:02]} cxd4 {[%clk
00:30:26]} {[%emt 00:00:02]} 4. Nxd4 {[%clk 00:30:44]} {[%emt 00:00:02]} Nf6
{[%clk 00:30:19]} {[%emt 00:00:16]} 5. Nc3 {[%clk 00:30:52]} {[%emt 00:00:02]}
d6 {[%clk 00:30:18]} {[%emt 00:00:10]} 6. Bg5 {[%clk 00:30:26]} {[%emt
00:00:36]} e6 {[%clk 00:30:18]} {[%emt 00:00:10]} 7. f4 {[%clk 00:29:32]}
{[%emt 00:01:05]} Qc7 {[%clk 00:29:32]} {[%emt 00:00:55]} 8. Qd2 {[%clk
00:28:23]} {[%emt 00:01:20]} a6 {[%clk 00:29:16]} {[%emt 00:00:25]} 9. Be2
{[%clk 00:27:48]} {[%emt 00:00:46]} Bd7 {[%clk 00:29:07]} {[%emt 00:00:17]} 10.
Bf3 {[%clk 00:27:51]} {[%emt 00:00:09]} Be7 {[%clk 00:28:22]} {[%emt 00:00:54]}
11. O-O-O {[%clk 00:27:32]} {[%emt 00:00:30]} Rc8 {[%clk 00:27:47]} {[%emt
00:00:44]} 12. Kb1 {[%clk 00:27:31]} {[%emt 00:00:12]} Na5 {[%clk 00:24:56]}
{[%emt 00:03:01]} 13. Nde2 {[%clk 00:24:50]} {[%emt 00:02:51]} Nc4 {[%clk
00:24:02]} {[%emt 00:01:04]} 14. Qd3 {[%clk 00:24:01]} {[%emt 00:00:58]} b5
{[%clk 00:23:57]} {[%emt 00:00:16]} 15. b3 {[%clk 00:21:20]} {[%emt 00:02:51]}
Nb6 {[%clk 00:18:31]} {[%emt 00:05:36]} 16. f5 {[%clk 00:19:32]} {[%emt
00:01:58]} b4 {[%clk 00:18:02]} {[%emt 00:00:38]} 17. fxe6 {[%clk 00:19:08]}
{[%emt 00:00:34]} fxe6 {[%clk 00:18:03]} {[%emt 00:00:08]} 18. e5 {[%clk
00:16:49]} {[%emt 00:02:31]} dxe5 {[%clk 00:17:30]} {[%emt 00:00:43]} 19. Bxf6
{[%clk 00:15:59]} {[%emt 00:00:59]} Bxf6 {[%clk 00:14:10]} {[%emt 00:03:31]} 20.
Ne4 {[%clk 00:15:35]} {[%emt 00:00:34]} O-O {[%clk 00:11:50]} {[%emt 00:02:29]}
21. h4 {[%clk 00:14:20]} {[%emt 00:01:25]} Bb5 {[%clk 00:11:17]} {[%emt
00:00:43]} 22. Qd2 {[%clk 00:13:18]} {[%emt 00:01:13]} Rfd8 {[%clk 00:10:41]}
{[%emt 00:00:45]} 23. Nxf6+ {[%clk 00:11:56]} {[%emt 00:01:34]} gxf6 {[%clk
00:10:47]} {[%emt 00:00:03]} 24. Qc1 {[%clk 00:12:04]} {[%emt 00:00:01]} e4
{[%clk 00:09:37]} {[%emt 00:01:21]} 25. Bg4 {[%clk 00:10:47]} {[%emt 00:01:26]}
Qe5 {[%clk 00:06:12]} {[%emt 00:03:35]} 26. Qb2 {[%clk 00:09:25]} {[%emt
00:01:32]} Qxb2+ {[%clk 00:05:43]} {[%emt 00:00:40]} 27. Kxb2 {[%clk 00:09:34]}
{[%emt 00:00:01]} f5 {[%clk 00:05:48]} {[%emt 00:00:05]} 28. Bh5 {[%clk
00:09:24]} {[%emt 00:00:20]} Nd5 {[%clk 00:05:38]} {[%emt 00:00:19]} 29. Nd4
{[%clk 00:08:56]} {[%emt 00:00:39]} Nf4 {[%clk 00:04:57]} {[%emt 00:00:51]} 30.
Nxb5 {[%clk 00:08:52]} {[%emt 00:00:14]} axb5 {[%clk 00:04:59]} {[%emt
00:00:08]} 31. Rxd8+ {[%clk 00:08:47]} {[%emt 00:00:14]} Rxd8 {[%clk 00:05:08]}
{[%emt 00:00:02]} 32. Bd1 {[%clk 00:08:53]} {[%emt 00:00:03]} Rd2 {[%clk
00:04:59]} {[%emt 00:00:19]} 33. g3 {[%clk 00:08:36]} {[%emt 00:00:27]} Nd3+
{[%clk 00:04:53]} {[%emt 00:00:17]} 34. Kb1 {[%clk 00:08:45]} {[%emt 00:00:01]}
Nf2 {[%emt 00:00:04]} 35. Kc1 {[%clk 00:08:42]} {[%emt 00:00:09]} Nxh1 {[%clk
00:03:44]} {[%emt 00:01:28]} 36. Kxd2 {[%clk 00:08:41]} {[%emt 00:00:11]} Nxg3
{[%clk 00:03:52]} {[%emt 00:00:03]} 37. c3 {[%clk 00:06:54]} {[%emt 00:01:57]}
bxc3+ {[%clk 00:03:08]} {[%emt 00:00:54]} 38. Kxc3 {[%clk 00:07:01]} {[%emt
00:00:03]} f4 {[%clk 00:03:15]} {[%emt 00:00:03]} 39. a4 {[%clk 00:07:09]}
{[%emt 00:00:02]} f3 {[%clk 00:03:03]} {[%emt 00:00:22]} 40. Kd2 {[%clk
00:07:11]} {[%emt 00:00:07]} bxa4 {[%clk 00:02:51]} {[%emt 00:00:23]} 41. bxa4
{[%clk 00:07:20]} Nf5 {[%clk 00:02:59]} 42. a5 {[%clk 00:07:18]} {[%emt
00:00:13]} e3+ {[%clk 00:02:36]} {[%emt 00:00:33]} 43. Ke1 {[%clk 00:06:45]}
{[%emt 00:00:43]} e2 {[%clk 00:02:34]} {[%emt 00:00:11]} 44. a6 {[%clk
00:06:21]} {[%emt 00:00:34]} exd1=Q+ {[%clk 00:02:35]} {[%emt 00:00:09]} 45.
Kxd1 {[%clk 00:06:30]} {[%emt 00:00:01]} Ne3+ {[%clk 00:02:37]} {[%emt
00:00:07]} 46. Ke1 {[%clk 00:06:29]} {[%emt 00:00:12]} Nd5 {[%clk 00:02:01]}
{[%emt 00:00:45]} 47. Kf2 {[%clk 00:06:37]} {[%emt 00:00:02]} Kf7 {[%clk
00:02:09]} {[%emt 00:00:01]} 48. Kxf3 {[%clk 00:06:45]} {[%emt 00:00:03]} Ke7
{[%clk 00:02:17]} {[%emt 00:00:03]} 49. Ke4 {[%clk 00:06:44]} {[%emt 00:00:10]}
Kd6 {[%clk 00:02:25]} {[%emt 00:00:02]} 50. Kd4 {[%clk 00:05:48]} {[%emt
00:01:06]} Nc7 {[%clk 00:02:12]} {[%emt 00:00:23]} 51. a7 {[%clk 00:05:54]}
{[%emt 00:00:05]} Nb5+ {[%clk 00:02:21]} {[%emt 00:00:01]} 52. Ke4 {[%clk
00:05:53]} {[%emt 00:00:11]} Nxa7 {[%clk 00:02:29]} {[%emt 00:00:02]} 53. Kf4
{[%clk 00:06:02]} {[%emt 00:00:04]} Ke7 {[%clk 00:02:13]} {[%emt 00:00:23]} 54.
Kg5 {[%clk 00:06:10]} {[%emt 00:00:02]} Kf7 {[%clk 00:02:21]} 55. h5 {[%clk
00:06:04]} {[%emt 00:00:16]} Kg7 {[%clk 00:02:23]} {[%emt 00:00:07]} 56. h6+
{[%clk 00:06:03]} {[%emt 00:00:13]} Kf7 {[%clk 00:02:30]} {[%emt 00:00:02]} 0-1

[Event "Vastgota Open 2022"]
[Site "Skara stadshotell, Jarnvagsgatan 5, Skara, Sweden"]
[Date "2022.10.29"]
[Round "4.9"]
[White "Aroven, Mikael"]
[Black "Bailly, Thierry"]
[Result "1/2-1/2"]
[TimeControl "30 minutes + 10 seconds per move from move one."]
[WhiteFideId "1709534"]
[BlackFideId "26051680"]
[WhiteElo "2089"]
[BlackElo "1931"]

1. Nf3 {[%clk 00:30:17]} {[%emt 00:00:03]} Nf6 {[%clk 00:30:18]} {[%emt
00:00:02]} 2. c4 {[%clk 00:30:24]} {[%emt 00:00:03]} e6 {[%clk 00:30:26]}
{[%emt 00:00:04]} 3. e3 {[%clk 00:29:44]} {[%emt 00:00:50]} d5 {[%clk
00:30:33]} {[%emt 00:00:03]} 4. Nc3 {[%clk 00:29:43]} {[%emt 00:00:11]} Be7
{[%clk 00:30:41]} {[%emt 00:00:02]} 5. b3 {[%clk 00:27:39]} {[%emt 00:02:14]}
O-O {[%clk 00:30:45]} {[%emt 00:00:06]} 6. Bb2 {[%clk 00:27:47]} {[%emt
00:00:01]} c5 {[%clk 00:30:43]} {[%emt 00:00:12]} 7. cxd5 {[%clk 00:27:55]}
{[%emt 00:00:02]} exd5 {[%clk 00:30:49]} {[%emt 00:00:04]} 8. d4 {[%clk
00:28:02]} {[%emt 00:00:04]} cxd4 {[%clk 00:30:42]} {[%emt 00:00:17]} 9. Nxd4
{[%clk 00:28:06]} {[%emt 00:00:05]} Nc6 {[%clk 00:30:50]} {[%emt 00:00:03]} 10.
Be2 {[%clk 00:28:09]} {[%emt 00:00:07]} Be6 {[%clk 00:27:17]} {[%emt 00:03:43]}
11. O-O {[%clk 00:28:14]} {[%emt 00:00:05]} Qd7 {[%clk 00:25:40]} {[%emt
00:01:47]} 12. Rc1 {[%clk 00:27:38]} {[%emt 00:00:45]} Rac8 {[%clk 00:25:17]}
{[%emt 00:00:33]} 13. a3 {[%clk 00:24:36]} {[%emt 00:03:13]} Nxd4 {[%clk
00:23:59]} {[%emt 00:01:28]} 14. Qxd4 {[%clk 00:24:15]} {[%emt 00:00:31]} Bc5
{[%clk 00:24:05]} {[%emt 00:00:04]} 15. Qh4 {[%clk 00:24:05]} {[%emt 00:00:18]}
Be7 {[%clk 00:22:28]} {[%emt 00:01:50]} 16. Qa4 {[%clk 00:22:08]} {[%emt
00:02:05]} Qxa4 {[%clk 00:21:49]} {[%emt 00:00:51]} 17. Nxa4 {[%clk 00:21:58]}
{[%emt 00:00:20]} Ne4 {[%clk 00:21:21]} {[%emt 00:00:36]} 18. b4 {[%clk
00:20:43]} {[%emt 00:01:26]} Nd2 {[%clk 00:18:36]} {[%emt 00:02:54]} 19. Rfd1
{[%clk 00:16:11]} {[%emt 00:04:44]} Nc4 {[%clk 00:16:14]} {[%emt 00:02:32]} 20.
Bxc4 {[%clk 00:15:37]} {[%emt 00:00:44]} dxc4 {[%clk 00:15:57]} {[%emt
00:00:26]} 21. Bd4 {[%clk 00:15:27]} {[%emt 00:00:20]} b6 {[%clk 00:15:35]}
{[%emt 00:00:33]} 22. Nc3 {[%clk 00:12:31]} {[%emt 00:03:05]} Bf6 {[%clk
00:05:43]} {[%emt 00:10:02]} 23. Bxf6 {[%clk 00:12:11]} {[%emt 00:00:31]} gxf6
{[%clk 00:05:52]} {[%emt 00:00:01]} 24. Rd4 {[%clk 00:12:20]} {[%emt 00:00:02]}
Rfd8 {[%clk 00:04:42]} {[%emt 00:01:19]} 25. Rcd1 {[%clk 00:12:28]} {[%emt
00:00:02]} Rxd4 {[%clk 00:04:45]} {[%emt 00:00:07]} 26. Rxd4 {[%clk 00:12:37]}
{[%emt 00:00:01]} Kf8 {[%clk 00:03:57]} {[%emt 00:00:59]} 27. Kf1 {[%clk
00:12:40]} {[%emt 00:00:05]} Ke7 {[%clk 00:03:57]} {[%emt 00:00:11]} 28. Ke2
{[%clk 00:12:47]} {[%emt 00:00:02]} a5 {[%clk 00:03:39]} {[%emt 00:00:28]} 29.
b5 {[%clk 00:09:48]} {[%emt 00:03:10]} Rc5 {[%clk 00:00:37]} {[%emt 00:03:12]}
30. a4 {[%clk 00:09:36]} {[%emt 00:00:21]} Rg5 {[%clk 00:00:15]} {[%emt
00:00:33]} 31. g3 {[%clk 00:08:39]} {[%emt 00:01:07]} Rh5 {[%clk 00:00:24]}
{[%emt 00:00:01]} 32. h4 {[%clk 00:08:43]} {[%emt 00:00:05]} Rc5 {[%clk
00:00:25]} {[%emt 00:00:09]} 33. Kd2 {[%clk 00:07:57]} {[%emt 00:00:56]} f5
{[%clk 00:00:22]} {[%emt 00:00:13]} 34. Ne2 {[%clk 00:06:55]} {[%emt 00:01:11]}
f6 {[%clk 00:00:16]} {[%emt 00:00:17]} 35. Kc3 {[%clk 00:06:58]} {[%emt
00:00:07]} Rc7 {[%clk 00:00:12]} {[%emt 00:00:14]} 36. Ng1 {[%clk 00:06:31]}
{[%emt 00:00:36]} Bf7 {[%clk 00:00:15]} {[%emt 00:00:08]} 37. Nf3 {[%clk
00:06:16]} {[%emt 00:00:25]} Rc8 {[%clk 00:00:12]} {[%emt 00:00:12]} 38. Nd2
{[%clk 00:06:24]} {[%emt 00:00:03]} Be6 {[%clk 00:00:13]} {[%emt 00:00:09]} 39.
Nxc4 {[%clk 00:05:43]} {[%emt 00:00:51]} Kf7 {[%clk 00:00:14]} {[%emt
00:00:09]} 40. Kd3 {[%clk 00:05:45]} {[%emt 00:00:08]} Bxc4+ {[%clk 00:00:18]}
{[%emt 00:00:06]} 41. Rxc4 {[%clk 00:05:54]} Rd8+ {[%clk 00:00:28]} 42. Rd4
{[%clk 00:04:44]} {[%emt 00:01:18]} Rc8 {[%clk 00:00:36]} {[%emt 00:00:02]} 43.
Rd7+ {[%clk 00:04:17]} {[%emt 00:00:38]} Kg6 {[%clk 00:00:45]} {[%emt
00:00:01]} 44. Rd6 {[%clk 00:03:12]} {[%emt 00:01:14]} Rc1 {[%clk 00:00:34]}
{[%emt 00:00:21]} 45. Ke2 {[%clk 00:02:51]} {[%emt 00:00:31]} Ra1 {[%clk
00:00:39]} {[%emt 00:00:06]} 46. Rd4 {[%clk 00:03:00]} {[%emt 00:00:01]} Kf7
{[%clk 00:00:27]} {[%emt 00:00:21]} 47. Rd6 {[%clk 00:02:53]} {[%emt 00:00:17]}
Rxa4 {[%clk 00:00:28]} {[%emt 00:00:09]} 48. Rxb6 {[%clk 00:03:02]} {[%emt
00:00:01]} Rb4 {[%clk 00:00:22]} {[%emt 00:00:16]} 49. Rb7+ {[%clk 00:03:00]}
{[%emt 00:00:13]} Kg6 {[%clk 00:00:29]} {[%emt 00:00:03]} 50. b6 {[%clk
00:03:09]} a4 {[%clk 00:00:35]} {[%emt 00:00:03]} 51. Ra7 {[%clk 00:02:39]}
{[%emt 00:00:39]} Rxb6 {[%clk 00:00:26]} {[%emt 00:00:22]} 52. Rxa4 {[%clk
00:02:47]} h5 {[%clk 00:00:29]} {[%emt 00:00:06]} 53. Ra7 {[%clk 00:02:51]}
{[%emt 00:00:06]} Rb5 {[%clk 00:00:28]} {[%emt 00:00:11]} 54. Rd7 {[%clk
00:02:57]} {[%emt 00:00:05]} Rc5 {[%clk 00:00:28]} {[%emt 00:00:10]} 55. Kf3
{[%clk 00:03:02]} {[%emt 00:00:04]} Rb5 {[%clk 00:00:32]} {[%emt 00:00:06]} 56.
Rd4 {[%clk 00:02:51]} {[%emt 00:00:22]} Rb2 {[%clk 00:00:25]} {[%emt 00:00:17]}
57. Rf4 {[%clk 00:02:50]} {[%emt 00:00:11]} Rb3 {[%clk 00:00:33]} {[%emt
00:00:02]} 58. Ke2 {[%clk 00:02:58]} {[%emt 00:00:01]} Rb2+ {[%clk 00:00:40]}
{[%emt 00:00:04]} 59. Kd3 {[%clk 00:03:06]} {[%emt 00:00:01]} Rb3+ {[%clk
00:00:46]} {[%emt 00:00:03]} 60. Kc4 {[%clk 00:03:12]} {[%emt 00:00:04]} Rb2
{[%clk 00:00:52]} {[%emt 00:00:04]} 61. Kd5 {[%clk 00:03:10]} {[%emt 00:00:07]}
Rb5+ {[%clk 00:00:58]} {[%emt 00:00:09]} 62. Kc6 {[%clk 00:03:17]} {[%emt
00:00:03]} Rb2 {[%clk 00:01:05]} {[%emt 00:00:03]} 63. Kc5 {[%clk 00:03:04]}
{[%emt 00:00:22]} Rc2+ {[%clk 00:01:11]} {[%emt 00:00:05]} 64. Kd4 {[%clk
00:03:01]} {[%emt 00:00:13]} Ra2 {[%clk 00:01:18]} {[%emt 00:00:04]} 65. Kd3
{[%clk 00:03:08]} {[%emt 00:00:02]} Ra3+ {[%clk 00:01:24]} {[%emt 00:00:05]} 66.
Ke2 {[%clk 00:03:16]} {[%emt 00:00:02]} Ra2+ {[%clk 00:01:30]} {[%emt
00:00:04]} 67. Kf3 {[%clk 00:03:25]} {[%emt 00:00:01]} Ra3 {[%clk 00:01:37]}
{[%emt 00:00:03]} 68. Rb4 {[%clk 00:03:34]} {[%emt 00:00:01]} Ra2 {[%clk
00:01:36]} {[%emt 00:00:11]} 69. Rb8 {[%clk 00:03:43]} {[%emt 00:00:01]} Ra4
{[%clk 00:01:32]} {[%emt 00:00:13]} 70. Rg8+ {[%clk 00:03:51]} {[%emt
00:00:02]} Kf7 {[%clk 00:01:37]} {[%emt 00:00:04]} 71. Rh8 {[%clk 00:03:57]}
{[%emt 00:00:04]} Kg6 {[%clk 00:01:46]} {[%emt 00:00:02]} 72. Rd8 {[%clk
00:03:59]} {[%emt 00:00:08]} Ra2 {[%clk 00:01:42]} {[%emt 00:00:14]} 73. Rd4
{[%clk 00:04:07]} {[%emt 00:00:03]} Rb2 {[%clk 00:01:41]} {[%emt 00:00:10]} 74.
e4 {[%clk 00:03:32]} {[%emt 00:00:46]} fxe4+ {[%clk 00:00:57]} {[%emt
00:00:54]} 75. Rxe4 {[%clk 00:03:41]} Kf5 {[%clk 00:00:56]} {[%emt 00:00:11]}
76. Re3 {[%clk 00:03:50]} Rb4 {[%clk 00:00:59]} {[%emt 00:00:06]} 77. Ra3
{[%clk 00:03:59]} {[%emt 00:00:02]} Rb5 {[%clk 00:00:55]} {[%emt 00:00:14]} 78.
Ra4 {[%clk 00:04:03]} {[%emt 00:00:05]} Rb3+ {[%clk 00:01:04]} {[%emt
00:00:02]} 79. Kg2 {[%clk 00:04:08]} {[%emt 00:00:05]} Rb5 {[%clk 00:01:12]}
{[%emt 00:00:02]} 80. Rf4+ {[%clk 00:04:17]} Kg6 {[%clk 00:01:07]} {[%emt
00:00:15]} 81. Kf3 {[%clk 00:04:25]} Rb3+ {[%clk 00:01:13]} {[%emt 00:00:05]}
82. Ke4 {[%clk 00:04:27]} {[%emt 00:00:08]} Rb4+ {[%clk 00:01:19]} {[%emt
00:00:04]} 83. Ke3 {[%clk 00:04:35]} {[%emt 00:00:02]} Rb3+ {[%clk 00:01:28]}
{[%emt 00:00:02]} 84. Kd2 {[%clk 00:04:38]} {[%emt 00:00:05]} Rb2+ {[%clk
00:01:35]} {[%emt 00:00:04]} 85. Kc3 {[%clk 00:04:47]} {[%emt 00:00:01]} Ra2
{[%clk 00:01:37]} {[%emt 00:00:07]} 86. Kd4 {[%clk 00:04:19]} {[%emt 00:00:37]}
Ra4+ {[%clk 00:01:45]} {[%emt 00:00:04]} 87. Ke3 {[%clk 00:04:28]} Ra3+ {[%clk
00:01:54]} {[%emt 00:00:03]} 88. Ke4 {[%clk 00:04:37]} Ra4+ {[%clk 00:02:02]}
{[%emt 00:00:02]} 89. Kf3 {[%clk 00:04:46]} Ra3+ {[%clk 00:02:10]} {[%emt
00:00:02]} 90. Kg2 {[%clk 00:04:54]} Ra2 {[%clk 00:02:05]} {[%emt 00:00:15]} 91.
Kh3 {[%clk 00:04:39]} {[%emt 00:00:26]} Ra3 {[%clk 00:01:29]} {[%emt 00:00:45]}
92. f3 {[%clk 00:04:36]} {[%emt 00:00:14]} f5 {[%clk 00:00:42]} {[%emt
00:00:57]} 93. Kg2 {[%clk 00:04:43]} {[%emt 00:00:02]} Ra2+ {[%clk 00:00:50]}
{[%emt 00:00:02]} 94. Kf1 {[%clk 00:04:52]} Ra1+ {[%clk 00:00:32]} {[%emt
00:00:28]} 95. Kf2 {[%clk 00:04:53]} {[%emt 00:00:09]} Ra2+ {[%clk 00:00:41]}
{[%emt 00:00:02]} 96. Ke3 {[%clk 00:05:00]} {[%emt 00:00:01]} Ra3+ {[%clk
00:00:49]} {[%emt 00:00:03]} 97. Kf2 {[%clk 00:04:55]} {[%emt 00:00:15]} Ra2+
{[%clk 00:00:58]} {[%emt 00:00:02]} 98. Kf1 {[%clk 00:05:02]} {[%emt 00:00:02]}
Ra1+ {[%clk 00:01:07]} {[%emt 00:00:03]} 99. Kg2 {[%clk 00:05:11]} Ra2+ {[%clk
00:01:16]} {[%emt 00:00:02]} 100. Kh3 {[%clk 00:05:20]} {[%emt 00:00:01]} Ra3
{[%clk 00:01:23]} {[%emt 00:00:03]} 101. Rb4 {[%clk 00:04:11]} {[%emt
00:01:19]} Rxf3 {[%clk 00:01:24]} {[%emt 00:00:09]} 102. Rb6+ {[%clk 00:04:20]}
Kg7 {[%clk 00:01:20]} {[%emt 00:00:15]} 103. Kg2 {[%clk 00:04:29]} Ra3 {[%clk
00:01:23]} {[%emt 00:00:08]} 104. Kf2 {[%clk 00:04:38]} Rc3 {[%clk 00:01:26]}
{[%emt 00:00:07]} 105. Re6 {[%clk 00:04:47]} {[%emt 00:00:01]} f4 {[%clk
00:00:34]} {[%emt 00:01:02]} 106. gxf4 {[%clk 00:04:40]} {[%emt 00:00:17]} Rh3
{[%clk 00:00:41]} {[%emt 00:00:04]} 107. Ra6 {[%clk 00:04:25]} {[%emt
00:00:25]} Rxh4 {[%clk 00:00:46]} {[%emt 00:00:05]} 108. Kf3 {[%clk 00:04:34]}
Rh1 {[%clk 00:00:27]} {[%emt 00:00:30]} 109. Ke4 {[%clk 00:04:43]} Rb1 {[%clk
00:00:31]} {[%emt 00:00:06]} 110. Ra5 {[%clk 00:04:41]} {[%emt 00:00:12]} Kg6
{[%clk 00:00:18]} {[%emt 00:00:24]} 111. Rg5+ {[%clk 00:04:48]} {[%emt
00:00:02]} Kh6 {[%clk 00:00:26]} {[%emt 00:00:02]} 112. Rd5 {[%clk 00:04:54]}
{[%emt 00:00:03]} Rb8 {[%clk 00:00:14]} {[%emt 00:00:22]} 113. Rd6+ {[%clk
00:05:02]} {[%emt 00:00:03]} Kg7 {[%clk 00:00:21]} {[%emt 00:00:03]} 114. Ke5
{[%clk 00:05:03]} {[%emt 00:00:08]} h4 {[%clk 00:00:22]} {[%emt 00:00:09]} 115.
Kf5 {[%clk 00:04:47]} {[%emt 00:00:26]} h3 {[%clk 00:00:22]} {[%emt 00:00:11]}
116. Rg6+ {[%clk 00:04:44]} {[%emt 00:00:12]} Kf7 {[%clk 00:00:27]} {[%emt
00:00:04]} 117. Rh6 {[%clk 00:04:50]} {[%emt 00:00:05]} Rb5+ {[%clk 00:00:14]}
{[%emt 00:00:24]} 118. Kg4 {[%clk 00:04:58]} {[%emt 00:00:02]} Rb3 {[%clk
00:00:21]} {[%emt 00:00:03]} 1/2-1/2